bitfinex-derivatives/quotes_SOLF0:USTF0_20240925
["timestamp","ask_amount","ask_price","bid_price","bid_amount"]
[1727232052567,8.08,152.22,152.18,3.2853]
[1727232053075,3.2849,152.21,152.17,3.2856]
[1727232053869,3.285,152.2,152.17,3.2856]
[1727232060573,3.2846,152.22,152.18,8.08]
[1727232061875,3.2846,152.22,152.18,11.3653]
[1727232062678,12.6394,152.23,152.19,3.2851]
[1727232063775,3.2845,152.22,152.19,3.2851]
[1727232066377,6.0424,152.24,152.2,11.3649]
[1727232066782,19.12284074,152.24,152.2,11.3649]
[1727232067078,6.0424,152.24,152.2,11.3649]
[1727232067278,19.12315061,152.24,152.2,11.3649]
[1727232068476,15.83885061,152.24,152.19,3.2851]
[1727232068676,8.08,152.23,152.19,3.2851]
[1727232069883,8.08,152.23,152.14,6.69972444]
[1727232070078,8.08,152.22,152.16,8.08]
[1727232070483,3.2849,152.21,152.17,3.2854]
[1727232070687,8.08,152.22,152.16,8.08]
[1727232070880,3.2849,152.21,152.17,3.2854]
[1727232071083,8.08,152.22,152.17,3.2854]
[1727232071286,8.08,152.21,152.12,90.97452714]
[1727232071479,3.2851,152.2,152.16,3.2858]
[1727232071982,3.2851,152.2,152.17,8.08]
[1727232072181,3.2848,152.21,152.17,11.3655]
[1727232072386,3.2848,152.21,152.17,8.08]
[1727232073882,3.2848,152.21,152.18,3.2853]
[1727232074187,3.2848,152.21,152.18,11.3653]
[1727232077889,14.4005292,152.23,152.15,11.3659]
[1727232078089,8.08,152.2,152.15,11.3659]
[1727232078490,3.2853,152.19,152.15,11.3659]
[1727232078694,3.2853,152.19,152.16,3.2857]
[1727232078894,3.2853,152.19,152.16,11.3657]
[1727232079593,8.08,152.22,152.17,11.3655]
[1727232079891,8.08,152.22,152.17,8.08]
[1727232080792,3.2848,152.21,152.18,3.2853]
[1727232084886,16.37960595,152.23,152.2,8.08]
[1727232085091,3.2845,152.23,152.19,8.08]
[1727232085395,16.37800451,152.23,152.19,8.08]
[1727232085596,3.2846,152.22,152.19,11.365]
[1727232085901,13.09350451,152.23,152.2,8.08]
[1727232086096,13.09350451,152.23,152.22,8.08]
[1727232086297,3.284,152.25,152.22,8.08]
[1727232087898,3.2841,152.24,152.2,3.2849]
[1727232088100,3.2841,152.24,152.2,11.3649]
[1727232088299,3.27931895,152.25,152.2,8.08]
[1727232088506,3.2843,152.23,152.2,8.08]
[1727232092701,3.2839,152.25,152.21,8.08]
[1727232093301,3.2839,152.25,152.12,87.67406692]
[1727232093302,3.2837,152.26,152.23,8.08]
[1727232094004,3.2834,152.28,152.24,8.08]
[1727232094907,13.0794048,152.29,152.27,8.08]
[1727232095107,2.6897,152.34,152.28,8.08]
[1727232095303,2.6897,152.34,152.2,6.6953419]
[1727232095304,1.0001263,152.33,152.31,8.08]
[1727232095709,4.2824263,152.33,152.31,8.08]
[1727232095901,3.2823,152.33,152.31,8.08]
[1727232096103,13.07859751,152.33,152.31,8.08]
[1727232096498,13.07859751,152.33,152.29,11.363]
[1727232096905,2.6897,152.34,152.29,11.363]
[1727232097104,3.2823,152.33,152.29,11.363]
[1727232098507,3.2823,152.33,152.29,8.08]
[1727232098813,3.2824,152.32,152.29,8.08]
[1727232099706,3.2822,152.33,152.29,11.3629]
[1727232099909,3.2822,152.33,152.31,8.08]
[1727232101012,10.7697,152.34,152.29,8.08]
[1727232101607,3.2825,152.32,152.29,8.08]
[1727232101907,1.00026544,152.31,152.29,8.08]
[1727232104111,1.00026544,152.31,152.3,8.08]
[1727232104313,1.00037766,152.31,152.3,8.08]
[1727232105113,3.2822,152.33,152.3,8.08]
[1727232105318,3.2822,152.33,152.32,8.08]
[1727232105520,4.28269431,152.33,152.32,8.08]
[1727232106019,4.28269431,152.33,152.29,3.283]
[1727232106321,3.2822,152.33,152.31,8.08]
[1727232106517,2.6897,152.34,152.32,8.08]
[1727232106518,3.282,152.34,152.32,8.08]
[1727232106713,1.0005038,152.33,152.32,8.02728562]
[1727232106913,1.0005038,152.33,152.32,11.30958562]
[1727232107114,19.02449504,152.39,152.32,8.02728562]
[1727232107313,1.00057258,152.38,152.35,8.08]
[1727232107619,3.2813,152.37,152.35,8.08]
[1727232107918,1.00057258,152.36,152.35,8.08]
[1727232108710,3.2813,152.37,152.35,8.08]
[1727232111122,6.0574,152.39,152.36,8.08]
[1727232112019,71.99114906,152.4,152.38,8.08]
[1727232112216,68.71034906,152.4,152.39,8.08]
[1727232112620,71.99104906,152.4,152.39,8.08]
[1727232113227,68.71034906,152.4,152.39,8.08]
[1727232113627,68.71034906,152.4,152.38,8.08]
[1727232114723,68.71034906,152.4,152.27,78.8]
[1727232114918,68.71034906,152.4,152.36,8.08]
[1727232115330,8.08,152.41,152.35,8.08]
[1727232116224,3.2811,152.38,152.36,8.08]
[1727232117024,3.2811,152.38,152.37,8.08]
[1727232117431,3.2809,152.39,152.37,8.08]
[1727232119934,3.2807,152.4,152.38,8.08]
[1727232121133,3.2808,152.39,152.38,8.08]
[1727232121432,3.2808,152.39,152.37,8.08]
[1727232122428,8.08,152.4,152.27,338.0]
[1727232122637,8.08,152.38,152.33,8.08]
[1727232123024,8.08,152.36,152.25,338.0]
[1727232123225,8.08,152.36,152.31,8.08]
[1727232123428,8.08,152.35,152.25,338.0]
[1727232123727,8.08,152.3,152.2,78.78]
[1727232123929,72.65308158,152.37,152.2,78.78]
[1727232123930,8.08,152.29,152.25,8.08]
[1727232125029,3.2834,152.28,152.25,8.08]
[1727232126337,3.2834,152.28,152.26,8.08]
[1727232127238,8.08,152.32,152.27,8.08]
[1727232128939,3.2828,152.3,152.27,8.08]
[1727232130643,3.2832,152.28,152.23,3.2841]
[1727232130844,3.2832,152.28,152.25,8.08]
[1727232133341,2.7117,152.31,152.27,8.08]
[1727232134450,3.2828,152.3,152.27,8.08]
[1727232136649,5.9943,152.31,152.27,8.08]
[1727232136845,2.7117,152.31,152.27,8.08]
[1727232137041,3.2829,152.3,152.26,11.3635]
[1727232140750,3.283,152.29,152.26,11.3635]
[1727232140950,3.283,152.29,152.26,8.08]
[1727232142149,3.283,152.29,152.25,3.2838]
[1727232142150,3.2832,152.28,152.25,11.3638]
[1727232144755,3.2831,152.29,152.25,11.3638]
[1727232145055,3.2831,152.29,152.26,3.2836]
[1727232145257,3.2831,152.29,152.26,11.3636]
[1727232149659,3.24666483,152.29,152.26,11.3636]
[1727232150255,3.2833,152.28,152.21,3.34012353]
[1727232150554,8.08,152.3,152.25,8.08]
[1727232151359,3.2831,152.29,152.26,11.3636]
[1727232151656,8.08,152.3,152.26,11.3636]
[1727232151851,11.3629,152.3,152.26,11.3636]
[1727232152360,3.2829,152.3,152.26,11.3636]
[1727232154056,2.2929,152.3,152.26,11.3636]
[1727232156255,5.9944,152.31,152.27,3.2832]
[1727232156457,5.9944,152.31,152.27,11.3632]
[1727232156656,5.9944,152.31,152.27,8.08]
[1727232156854,5.9944,152.31,152.27,11.3634]
[1727232157060,3.2828,152.3,152.27,11.3634]
[1727232157565,5.9943,152.31,152.27,11.3634]
[1727232158261,68.72366464,152.35,152.28,8.08]
[1727232158468,76.80366464,152.35,152.3,8.08]
[1727232158768,76.80366464,152.35,152.31,8.08]
[1727232159767,3.282,152.34,152.31,8.08]
[1727232161459,68.72366464,152.35,152.29,8.08]
[1727232161762,85.3787,152.46,152.24,3.25765816]
[1727232161763,11.30547795,152.4,152.24,338.0]
[1727232161964,11.31730372,152.4,152.35,8.08]
[1727232162264,3.2811,152.38,152.35,8.08]
[1727232162665,3.2809,152.39,152.35,8.08]
[1727232162963,3.2809,152.39,152.35,3.33775409]
[1727232163364,13.0367588,152.38,152.24,318.28971863]
[1727232163565,13.0367588,152.38,152.35,8.08]
[1727232163762,3.2809,152.39,152.36,1.52372741]
[1727232163966,3.2809,152.39,152.24,318.28971863]
[1727232164165,6.49950808,152.41,152.37,3.2811]
[1727232164365,2.6732,152.44,152.37,0.20290101]
[1727232164566,8.08,152.42,152.37,0.20290101]
[1727232164762,8.08,152.42,152.37,3.48410101]
[1727232164763,3.2804,152.41,152.37,3.48410101]
[1727232164968,8.08,152.42,152.37,3.48410101]
[1727232165163,8.08,152.42,152.38,8.08]
[1727232165566,2.6732,152.44,152.39,8.08]
[1727232166072,3.2803,152.42,152.39,8.08]
[1727232166266,3.2803,152.42,152.38,8.08]
[1727232167971,3.2803,152.42,152.38,11.361]
[1727232168470,11.36,152.43,152.39,3.2808]
[1727232168673,3.28,152.43,152.4,8.08]
[1727232169477,3.28,152.43,152.39,11.3608]
[1727232169975,8.08,152.41,152.3,5.97374227]
[1727232170170,8.08,152.41,152.36,8.08]
[1727232170371,8.08,152.41,152.37,8.08]
[1727232170572,3.2808,152.4,152.37,8.08]
[1727232172067,3.2808,152.4,152.36,3.2814]
[1727232172271,3.2808,152.4,152.37,8.08]
[1727232177985,3.2808,152.4,152.37,11.3612]
[1727232178389,3.2808,152.4,152.38,8.08]
[1727232179083,8.08,152.42,152.38,11.361]
[1727232179685,11.3604,152.42,152.38,11.361]
[1727232180187,8.08,152.42,152.37,11.3612]
[1727232180790,3.2806,152.41,152.37,11.3612]
[1727232181187,3.2806,152.41,152.38,8.08]
[1727232182591,3.2807,152.4,152.37,8.08]
[1727232183296,8.08,152.4,152.29,315.06916808]
[1727232183488,8.08,152.39,152.25,321.63686808]
[1727232183689,8.08,152.42,152.37,8.08]
[1727232183899,11.40873653,152.42,152.37,8.08]
[1727232184290,8.08,152.43,152.38,8.08]
[1727232184497,8.08,152.43,152.4,8.08]
[1727232184693,2.6732,152.44,152.4,8.08]
[1727232184996,3.28,152.43,152.41,8.08]
[1727232185195,68.72401746,152.49,152.41,8.08]
[1727232185399,3.2795,152.46,152.41,8.08]
[1727232185694,2.5453,152.48,152.44,8.08]
[1727232186295,3.2793,152.47,152.44,8.08]
[1727232186595,3.2794,152.46,152.44,8.08]
[1727232187193,3.2794,152.46,152.42,3.2801]
[1727232187391,3.2794,152.46,152.44,8.08]
[1727232188404,3.2794,152.46,152.37,90.89137445]
[1727232188405,3.2791,152.47,152.45,8.08]
[1727232189295,3.2793,152.46,152.45,8.08]
[1727232189801,8.08,152.46,152.39,8.08]
[1727232190005,27.8,152.4,152.04,315.06916808]
[1727232190210,19.72,152.37,152.05,5.96116937]
[1727232190503,19.72,152.37,152.16,8.08]
[1727232190504,8.08,152.22,152.16,8.08]
[1727232190698,22.92326857,152.37,152.17,8.08]
[1727232190896,3.2854,152.19,152.02,397.03506201]
[1727232191200,3.2854,152.19,152.16,8.08]
[1727232191401,8.08,152.2,152.15,8.08]
[1727232191895,8.08,152.18,152.06,3.2878]
[1727232192098,3.2869,152.11,152.07,1.369]
[1727232192301,12.62,152.15,152.07,1.369]
[1727232193000,3.2863,152.14,152.07,1.369]
[1727232193806,3.2863,152.14,152.07,13.989]
[1727232194204,3.2865,152.13,152.07,1.369]
[1727232194404,12.62,152.14,152.07,4.6567]
[1727232196301,15.9064,152.14,152.07,4.6567]
[1727232196502,12.62,152.14,152.07,4.6567]
[1727232197105,3.2865,152.13,152.07,4.6567]
[1727232201414,3.2863,152.14,152.07,1.369]
[1727232201607,12.62,152.15,152.07,1.369]
[1727232202509,3.2865,152.13,152.07,4.6567]
[1727232206316,3.2865,152.13,152.08,3.2875]
[1727232207416,3.2867,152.12,152.08,3.2875]
[1727232207612,12.62,152.15,152.07,1.369]
[1727232209819,3.2867,152.12,152.07,4.6567]
[1727232210022,3.34221257,152.17,152.07,1.369]
[1727232210218,68.7829432,152.24,152.07,1.369]
[1727232210219,12.62,152.14,152.07,1.369]
[1727232210418,3.2867,152.12,152.08,3.2875]
[1727232211419,3.2867,152.12,152.07,4.6567]
[1727232212221,3.2867,152.12,152.08,3.2875]
[1727232218418,12.62,152.23,152.07,1.369]
[1727232218419,8.08,152.15,152.07,1.369]
[1727232218717,68.7829432,152.24,152.08,8.08]
[1727232218718,8.08,152.13,152.08,8.08]
[1727232219727,8.08,152.12,152.08,11.3675]
[1727232220327,8.08,152.12,152.08,3.2875]
[1727232220928,11.3668,152.12,152.08,3.2875]
[1727232221130,8.08,152.11,152.07,4.6567]
[1727232221326,6.569,152.23,152.07,1.369]
[1727232221532,8.08,152.1,152.07,1.369]
[1727232222136,6.569,152.23,152.09,3.2873]
[1727232222334,12.64,152.16,152.09,3.2873]
[1727232222728,12.64,152.16,152.1,3.2869]
[1727232223526,3.2863,152.14,152.1,3.2869]
[1727232223928,3.2863,152.14,152.07,1.369]
[1727232224330,3.2865,152.13,152.07,1.369]
[1727232224530,12.64,152.14,152.09,3.2872]
[1727232225121,12.64,152.16,152.07,1.369]
[1727232225329,12.64,152.16,152.07,14.009]
[1727232225730,6.5664,152.29,152.09,12.64]
[1727232225932,12.64,152.21,152.11,12.64]
[1727232226228,3.2856,152.17,152.13,3.2864]
[1727232226423,3.2856,152.17,152.12,2.654]
[1727232226629,12.64,152.19,152.12,2.654]
[1727232226823,3.286,152.15,152.12,2.654]
[1727232228226,12.64,152.15,152.07,1.369]
[1727232228423,12.64,152.13,152.07,1.369]
[1727232229436,3.2872,152.1,152.07,1.369]
[1727232229631,3.2872,152.1,152.05,5.9422]
[1727232229830,12.64,152.13,152.05,2.654]
[1727232230227,3.287,152.11,152.06,3.2878]
[1727232231136,12.64,152.15,152.08,3.2875]
[1727232232139,12.64,152.15,152.07,3.2877]
[1727232233330,3.2868,152.12,152.07,3.2877]
[1727232233735,12.64,152.13,152.07,3.2877]
[1727232234034,3.2867,152.12,152.07,3.2877]
[1727232235442,3.2869,152.11,152.06,4.6561]
[1727232236340,12.64,152.13,152.06,3.2879]
[1727232236942,3.287,152.11,152.06,3.2879]
[1727232237243,12.64,152.13,152.06,3.2879]
[1727232238437,3.29496876,152.16,152.05,1.3471]
[1727232238643,12.64,152.15,152.05,13.9871]
[1727232238845,12.64,152.15,152.05,15.3531]
[1727232239244,3.2865,152.13,152.07,12.64]
[1727232239842,3.2865,152.13,152.08,3.2874]
[1727232241044,3.2863,152.14,152.07,12.64]
[1727232241247,3.25023023,152.16,152.07,12.64]
[1727232241450,3.2862,152.14,152.09,3.2873]
[1727232242844,3.2865,152.13,152.09,3.2873]
[1727232243444,3.2867,152.12,152.08,3.2875]
[1727232244248,3.2865,152.13,152.08,3.2875]
[1727232247260,3.2867,152.12,152.08,3.2875]
[1727232250766,11.3665,152.13,152.08,3.2875]
[1727232253867,8.08,152.12,152.08,3.2875]
[1727232255164,11.3665,152.13,152.08,11.3675]
[1727232255363,11.3665,152.13,152.09,3.2873]
[1727232255768,8.08,152.13,152.08,8.08]
[1727232256566,11.3665,152.13,152.09,3.2872]
[1727232258867,23.30739765,152.13,152.09,3.2872]
[1727232259168,11.3665,152.13,152.09,3.2872]
[1727232259862,36.21522447,152.13,152.09,3.2872]
[1727232260057,11.3665,152.13,152.09,3.2872]
[1727232260662,36.21544407,152.13,152.09,3.2872]
[1727232260965,11.94878902,152.12,152.09,3.2872]
[1727232261266,11.3665,152.13,152.09,3.2872]
[1727232261858,36.22133598,152.13,152.09,3.2872]
[1727232262263,11.94878902,152.12,152.09,3.2872]
[1727232262476,11.3665,152.13,152.09,3.2872]
[1727232262664,11.94878902,152.12,152.08,3.2875]
[1727232262863,23.31528902,152.13,152.08,3.2875]
[1727232263076,11.94878902,152.12,152.08,3.2875]
[1727232263667,11.3665,152.13,152.08,3.2875]
[1727232264270,36.22662909,152.13,152.08,3.2875]
[1727232264570,11.94878902,152.12,152.08,3.2875]
[1727232264874,11.3665,152.13,152.08,3.2875]
[1727232265371,36.22610129,152.13,152.08,3.2875]
[1727232265565,11.94878902,152.12,152.08,3.2875]
[1727232265967,11.3665,152.13,152.08,3.2875]
[1727232266575,36.22386657,152.13,152.08,3.2875]
[1727232266765,11.94878902,152.12,152.08,3.2875]
[1727232267767,11.3665,152.13,152.08,3.2875]
[1727232268472,36.2231455,152.13,152.08,3.2875]
[1727232268770,11.94878902,152.12,152.08,3.2875]
[1727232268966,11.3665,152.13,152.08,3.2875]
[1727232269365,23.31528902,152.13,152.08,3.2875]
[1727232269572,11.94878902,152.12,152.08,3.2875]
[1727232269965,11.3665,152.13,152.08,3.2875]
[1727232270469,36.22273919,152.13,152.08,3.2875]
[1727232270670,11.94878902,152.12,152.08,3.2875]
[1727232271067,11.3665,152.13,152.08,3.2875]
[1727232271670,36.22350447,152.13,152.08,3.2875]
[1727232271875,11.94878902,152.12,152.08,3.2875]
[1727232272476,11.94878902,152.12,152.09,3.2873]
[1727232273275,11.3665,152.13,152.09,3.2873]
[1727232273671,36.22330883,152.13,152.09,3.2873]
[1727232273875,11.94878902,152.12,152.09,3.2873]
[1727232274172,11.3665,152.13,152.09,3.2873]
[1727232274567,36.23116172,152.13,152.09,3.2873]
[1727232274769,11.3665,152.13,152.09,3.2873]
[1727232275374,36.23116993,152.13,152.09,3.2873]
[1727232275574,11.3665,152.13,152.09,3.2873]
[1727232276277,36.2309731,152.13,152.09,3.2873]
[1727232276475,11.95625319,152.12,152.09,3.2873]
[1727232276768,11.3665,152.13,152.09,3.2873]
[1727232277176,36.23146143,152.13,152.09,3.2873]
[1727232277474,11.3665,152.13,152.09,3.2873]
[1727232278077,36.23106918,152.13,152.09,3.2873]
[1727232278374,11.3665,152.13,152.09,3.2873]
[1727232278979,36.23121452,152.13,152.09,3.2873]
[1727232279182,11.3665,152.13,152.09,3.2873]
[1727232279475,3.2867,152.12,152.08,3.2875]
[1727232280468,11.3665,152.13,152.09,3.2873]
[1727232280673,36.23336366,152.13,152.09,3.2873]
[1727232280870,11.95775367,152.12,152.09,3.2873]
[1727232281067,11.3665,152.13,152.09,3.2873]
[1727232281670,36.23937904,152.13,152.09,3.2873]
[1727232281869,11.3665,152.13,152.09,3.2873]
[1727232282072,3.2867,152.12,152.08,3.2874]
[1727232283188,15.24723434,152.12,152.08,3.2874]
[1727232283379,23.32723434,152.12,152.08,3.2874]
[1727232283778,3.2869,152.11,152.07,11.3677]
[1727232286681,3.2869,152.11,152.07,3.2877]
[1727232288188,11.96348142,152.13,152.08,8.08]
[1727232288486,11.96348142,152.13,152.09,8.08]
[1727232288683,11.96348142,152.13,152.1,3.287]
[1727232288878,24.87925242,152.15,152.11,8.08]
[1727232289986,24.87925242,152.15,152.1,11.367]
[1727232290887,3.2862,152.14,152.1,8.08]
[1727232292286,12.915771,152.13,152.1,8.08]
[1727232292490,3.2862,152.14,152.1,8.08]
[1727232292890,11.3662,152.14,152.1,8.08]
[1727232295091,3.2862,152.14,152.1,8.08]
[1727232296389,20.04348142,152.15,152.11,3.2869]
[1727232296791,20.04348142,152.15,152.1,8.08]
[1727232297690,11.96348142,152.15,152.13,8.08]
[1727232297898,8.08,152.21,152.13,8.08]
[1727232298094,11.96348142,152.23,152.14,8.08]
[1727232298095,8.08,152.19,152.14,8.08]
[1727232298391,3.2857,152.17,152.13,8.08]
[1727232298600,1.00085224,152.16,152.12,8.08]
[1727232298789,4.28665224,152.16,152.12,8.08]
[1727232298990,8.08,152.17,152.12,8.08]
[1727232299192,1.00095248,152.16,152.12,8.08]
[1727232299489,4.28675248,152.16,152.12,8.08]
[1727232299694,32.97720852,152.17,152.12,8.08]
[1727232299994,3.2861,152.15,152.11,8.08]
[1727232300193,28.18330852,152.15,152.11,8.08]
[1727232300395,24.89720852,152.14,152.11,8.08]
[1727232300698,12.9337271,152.14,152.11,11.3669]
[1727232300998,3.2861,152.15,152.11,11.3669]
[1727232301991,3.2861,152.15,152.1,4.6923]
[1727232302393,3.2861,152.15,152.1,12.7723]
[1727232305393,3.2861,152.15,152.1,9.4852]
[1727232305594,3.2859,152.16,152.13,8.08]
[1727232305803,11.3659,152.16,152.11,14.0316]
[1727232309514,12.9337271,152.18,152.11,1.3661]
[1727232309810,8.08,152.12,152.08,8.08]
[1727232310113,8.08,152.12,152.09,3.2872]
[1727232310607,8.08,152.12,152.1,3.2871]
[1727232311111,8.08,152.12,152.09,3.2872]
[1727232311309,8.08,152.12,152.08,8.08]
[1727232311911,8.08,152.12,152.08,11.3674]
[1727232313511,11.3667,152.12,152.08,11.3674]
[1727232315512,3.2867,152.12,152.08,11.3674]
[1727232315904,3.2867,152.12,152.09,11.3673]
[1727232316509,3.2865,152.13,152.09,11.3673]
[1727232316915,3.2865,152.13,152.1,8.08]
[1727232317310,3.2865,152.13,152.1,11.3671]
[1727232318515,3.2863,152.14,152.1,11.3671]
[1727232319616,3.2863,152.14,152.1,3.2871]
[1727232324220,11.3663,152.14,152.1,3.2871]
[1727232325217,3.2865,152.13,152.05,4.0441]
[1727232325523,3.2865,152.13,152.09,8.08]
[1727232326020,12.9337271,152.18,152.1,8.08]
[1727232326211,0.99886828,152.17,152.1,8.08]
[1727232326416,8.08,152.16,152.1,8.08]
[1727232326616,0.99886828,152.15,152.1,8.08]
[1727232327722,9.07886828,152.15,152.09,8.08]
[1727232327924,3.2862,152.14,152.1,3.287]
[1727232329320,3.2865,152.13,152.08,3.2873]
[1727232329517,8.08,152.13,152.08,3.2873]
[1727232330223,21.0137271,152.13,152.08,3.2873]
[1727232330424,12.9337271,152.12,152.08,3.2873]
[1727232330616,8.08,152.13,152.08,3.2873]
[1727232330816,3.2868,152.12,152.08,3.2873]
[1727232332319,3.2869,152.11,152.07,3.2877]
[1727232332515,8.08,152.13,152.05,4.0441]
[1727232332516,8.08,152.12,152.05,4.0441]
[1727232332715,8.08,152.12,152.06,15.53083134]
[1727232332923,8.08,152.1,152.06,8.08]
[1727232333124,8.08,152.09,152.05,2.6548]
[1727232333324,8.08,152.09,152.03,95.80503385]
[1727232333525,8.08,152.09,152.04,7.44940154]
[1727232333731,3.2877,152.08,152.03,99.09363385]
[1727232333931,3.2877,152.08,152.04,7.44953636]
[1727232334127,3.2878,152.07,152.03,95.80503385]
[1727232334625,3.2878,152.07,152.04,7.44945104]
[1727232334626,11.3678,152.07,152.04,7.44945104]
[1727232334925,11.3678,152.07,152.03,95.80503385]
[1727232335630,3.288,152.06,152.03,87.72503385]
[1727232336028,11.368,152.06,152.03,87.72503385]
[1727232337833,3.288,152.06,152.03,87.72503385]
[1727232340026,3.2884,152.05,152.01,2.6921]
[1727232340424,3.2884,152.05,152.01,10.7721]
[1727232341932,3.2884,152.05,152.01,14.0611]
[1727232342437,3.2884,152.05,152.02,8.08]
[1727232346237,3.288,152.06,152.03,8.08]
[1727232348542,3.288,152.06,152.01,5.981]
[1727232348746,3.288,152.06,152.02,8.08]
[1727232350339,3.288,152.06,152.01,5.981]
[1727232350539,3.288,152.06,152.03,8.08]
[1727232352046,8.08,152.07,151.99,3.2894]
[1727232352246,68.84476347,152.07,151.97,98.53519322]
[1727232352544,8.08,152.02,151.98,8.08]
[1727232352848,11.3689,152.02,151.98,8.08]
[1727232353042,8.08,152.03,151.99,8.08]
[1727232353236,11.39117769,152.04,151.99,8.08]
[1727232353439,3.2888,152.03,151.99,8.08]
[1727232353745,68.84476347,152.07,152.02,8.08]
[1727232353746,76.92476347,152.07,152.02,8.08]
[1727232354143,80.26653625,152.07,152.02,8.08]
[1727232354346,3.2881,152.06,152.02,8.08]
[1727232357155,3.2882,152.05,152.02,8.08]
[1727232357843,3.2882,152.05,152.01,8.08]
[1727232358249,3.2884,152.04,152.01,8.08]
[1727232360648,72.18653625,152.07,152.02,8.08]
[1727232361048,3.2881,152.06,152.02,8.08]
[1727232363555,8.08,152.06,151.97,2.6923]
[1727232363756,8.08,152.05,151.99,8.08]
[1727232364760,8.08,152.03,151.97,2.6923]
[1727232364959,8.08,152.03,151.98,8.08]
[1727232365158,8.08,152.03,151.99,8.08]
[1727232366254,8.08,152.04,151.99,8.08]
[1727232367257,11.3686,152.04,151.99,8.08]
[1727232368550,3.2886,152.03,151.99,8.08]
[1727232373563,3.2886,152.03,151.98,3.2896]
[1727232373760,3.2886,152.03,151.99,8.08]
[1727232376262,3.2889,152.02,151.99,8.08]
[1727232382872,8.08,152.03,151.97,2.6923]
[1727232383080,8.08,152.01,151.97,2.6923]
[1727232383574,3.2893,152.0,151.97,2.6923]
[1727232383770,3.2893,152.0,151.9,6.99155029]
[1727232383968,11.3693,152.0,151.95,3.2903]
[1727232384370,3.2895,151.99,151.95,11.3703]
[1727232385371,3.2893,152.0,151.96,8.08]
[1727232385575,3.2893,152.0,151.96,11.3701]
[1727232386768,3.2893,152.0,151.96,3.2901]
[1727232386970,3.2893,152.0,151.97,8.08]
[1727232388470,3.2893,152.0,151.96,8.08]
[1727232390575,3.2895,151.99,151.94,3.2904]
[1727232390877,3.2895,151.99,151.95,8.08]
[1727232391078,6.64861105,151.99,151.95,8.08]
[1727232393680,3.2898,151.98,151.93,3.2908]
[1727232393875,8.08,151.98,151.9,4.006]
[1727232394076,8.08,151.98,151.92,8.08]
[1727232394372,8.08,151.97,151.92,8.08]
[1727232394673,8.08,151.97,151.93,8.08]
[1727232394875,11.37,151.97,151.93,8.08]
[1727232395078,11.37,151.97,151.92,3.2909]
[1727232395379,11.37,151.97,151.93,8.08]
[1727232396477,11.37,151.97,151.93,11.3707]
[1727232398179,11.37,151.97,151.92,11.3709]
[1727232399172,3.26848607,151.98,151.9,4.006]
[1727232399173,8.08,151.94,151.9,4.006]
[1727232399475,8.08,151.94,151.9,12.086]
[1727232400673,8.08,151.94,151.9,4.006]
[1727232400876,3.26848607,151.98,151.91,8.08]
[1727232401079,8.08,151.95,151.91,8.08]
[1727232401885,11.43132765,151.97,151.92,8.08]
[1727232402075,8.08,151.97,151.9,4.006]